fUSD/lending_fUSD_20260417
["ID","MTS","AMOUNT","RATE_DAILY","PERIOD"]
[420645879,1776415849109,-1001.787014,9.1e-05,2]
[420645880,1776415849119,-1001.787014,9.1e-05,2]
[420645881,1776415849129,-1001.787014,9.1e-05,2]
[420645882,1776415849138,-1531.0,9.1e-05,2]
[420645883,1776415849148,-1584.56276668,9.1e-05,2]
[420645884,1776415849161,-37.41052368,9.1e-05,2]
[420645885,1776415849171,-249.44582715,9.102e-05,7]
[420645886,1776415849708,-144.55417285,9.102e-05,7]
[420645887,1776415849718,-405.86539211,9.137e-05,2]
[420645888,1776415849727,-45.81113504,9.172e-05,2]
[420645889,1776415849747,-204.18886496,9.172e-05,2]
[420645890,1776415849756,-1016.97334311,9.172e-05,2]
[420645891,1776415849776,-663.02665689,9.172e-05,2]
[420645892,1776415849786,-1199.95308628,9.188e-05,3]
[420645893,1776415849796,-1310.69825995,9.233e-05,2]
[420645894,1776415849807,-1493.60554999,9.233e-05,2]
[420645896,1776416114235,214.16993866,8.322e-05,30]
[420645897,1776416114895,214.16993866,8.337e-05,30]
[420645898,1776416115527,214.16993866,8.343e-05,30]
[420645899,1776416116202,214.16993866,8.361e-05,30]
[420645900,1776416116842,214.16993866,0.00014456,30]
[420645901,1776416121727,237.26041992,8.337e-05,30]
[420645902,1776416177123,508.556,8e-05,2]
[420645904,1776416310441,150.0,0.00015947,120]
[420645905,1776416358283,200.0,8.208e-05,2]
[420645906,1776416404916,161.0,8.118e-05,3]
[420645910,1776416620224,150.0,0.0001649,30]
[420645915,1776416719086,151.0,0.0001649,30]
[420645917,1776416765268,173.83,6.448e-05,2]
[420645919,1776416900423,3301.94,8.219e-05,2]
[420645931,1776417031985,-166.43,8.322e-05,2]
[420645932,1776417031995,-387.79,8.322e-05,2]
[420645933,1776417032004,-1143.92227565,8.342e-05,2]
[420645934,1776417032041,-56.07772435,8.342e-05,2]
[420645935,1776417032051,-501.15034464,8.343e-05,2]
[420645936,1776417032060,-501.74123223,8.343e-05,2]
[420645937,1776417032070,-500.0,8.343e-05,2]
[420645938,1776417032079,-150.0,8.35e-05,2]
[420645939,1776417032090,-425.03069878,8.351e-05,2]
[420645940,1776417032102,-74.96930122,8.351e-05,2]
[420645941,1776417032111,-303.38209485,8.351e-05,2]
[420645942,1776417032147,-196.61790515,8.351e-05,2]
[420645943,1776417032156,-500.0,8.351e-05,2]
[420645945,1776417032543,-500.0,8.351e-05,2]
[420645946,1776417032552,-500.0,8.351e-05,2]
[420645947,1776417032562,-630.6942654,8.351e-05,2]
[420645948,1776417032571,-54901.09252218,8.353e-05,2]
[420645949,1776417032580,-153.68213857,8.442e-05,2]
[420645950,1776417032590,-578.20924308,8.52e-05,2]
[420645951,1776417032599,-174.61919141,8.52e-05,2]
[420645952,1776417032608,-33071.2974,8.592e-05,2]
[420645953,1776417032617,-500.0,8.603e-05,2]
[420645954,1776417032627,-5867.09,8.636e-05,2]
[420645955,1776417032636,-18270.8,8.636e-05,2]
[420645956,1776417032646,-363.0,8.805e-05,2]
[420645957,1776417032655,-201.0,8.805e-05,2]
[420645958,1776417032663,-502.95671559,8.891e-05,2]
[420645959,1776417032671,-442.0,8.934e-05,5]
[420645960,1776417032680,-158.0,8.934e-05,5]
[420645961,1776417032690,-354.32194628,8.956e-05,2]
[420645962,1776417032699,-1285.451,9e-05,2]
[420645963,1776417032708,-172.42901639,9e-05,2]
[420645964,1776417032717,-150.0,9e-05,2]
[420645965,1776417032727,-1500.0,9e-05,3]
[420645966,1776417032736,-181.08010149,9.068e-05,2]
[420645967,1776417032745,-500.82327791,9.073e-05,2]
[420645968,1776417032754,-500.0,9.073e-05,2]
[420645969,1776417032764,-157.58789548,9.073e-05,2]
[420645970,1776417032773,-503.07815246,9.073e-05,2]
[420645971,1776417032782,-500.0,9.073e-05,2]
[420645972,1776417032791,-500.0,9.073e-05,2]
[420645973,1776417032800,-1280.88388878,9.095e-05,2]
[420645974,1776417032809,-646.65982734,9.095e-05,2]
[420645975,1776417032819,-500.0,9.099e-05,2]
[420645976,1776417032828,-251.23174324,9.099e-05,2]
[420645977,1776417032838,-249.08464587,9.099e-05,2]
[420645978,1776417032847,-500.0,9.099e-05,2]
[420645979,1776417032856,-500.0,9.099e-05,2]
[420645980,1776417032865,-351.05657664,9.099e-05,2]
[420645981,1776417032875,-500.0,9.099e-05,2]
[420645982,1776417032884,-500.0,9.099e-05,2]
[420645983,1776417032894,-494.70749658,9.099e-05,2]
[420645984,1776417032903,-500.0,9.099e-05,2]
[420645985,1776417032913,-500.0,9.099e-05,2]
[420645986,1776417032922,-568.94629363,9.099e-05,2]
[420645987,1776417032932,-500.0,9.099e-05,2]
[420645988,1776417032941,-500.0,9.099e-05,2]
[420645989,1776417032950,-500.0,9.099e-05,2]
[420645990,1776417032959,-500.0,9.099e-05,2]
[420645991,1776417032968,-266.62505872,9.099e-05,2]
[420645992,1776417032977,-500.0,9.099e-05,2]
[420645993,1776417032986,-344.90983264,9.099e-05,2]
[420645994,1776417032995,-500.0,9.099e-05,2]
[420645995,1776417033004,-500.0,9.099e-05,2]
[420645996,1776417033014,-500.0,9.099e-05,2]
[420645997,1776417033023,-500.0,9.099e-05,2]
[420645998,1776417033032,-500.0,9.099e-05,2]
[420645999,1776417033041,-500.0,9.099e-05,2]
[420646000,1776417033050,-495.6499206,9.099e-05,2]
[420646001,1776417033059,-500.0,9.099e-05,2]
[420646002,1776417033068,-500.0,9.099e-05,2]
[420646003,1776417033077,-500.0,9.099e-05,2]
[420646004,1776417033086,-500.0,9.099e-05,2]
[420646005,1776417033095,-500.0,9.099e-05,2]
[420646006,1776417033104,-500.0,9.099e-05,2]
[420646007,1776417033113,-500.0,9.099e-05,2]
[420646008,1776417033122,-500.0,9.099e-05,2]
[420646009,1776417033131,-500.0,9.099e-05,2]
[420646010,1776417033140,-500.0,9.099e-05,2]
[420646011,1776417033149,-500.0,9.099e-05,2]
[420646012,1776417033158,-500.0,9.099e-05,2]
[420646013,1776417033167,-500.0,9.099e-05,2]
[420646014,1776417033177,-500.0,9.099e-05,2]
[420646015,1776417033187,-500.0,9.099e-05,2]
[420646016,1776417033196,-500.0,9.099e-05,2]
[420646017,1776417033205,-500.0,9.099e-05,2]
[420646018,1776417033215,-500.0,9.099e-05,2]
[420646019,1776417033224,-500.0,9.099e-05,2]
[420646020,1776417033233,-500.0,9.099e-05,2]
[420646021,1776417033243,-500.0,9.099e-05,2]
[420646022,1776417033252,-500.0,9.099e-05,2]
[420646023,1776417033261,-500.0,9.099e-05,2]
[420646024,1776417033270,-500.0,9.099e-05,2]
[420646025,1776417033280,-500.0,9.099e-05,2]
[420646026,1776417033289,-500.0,9.099e-05,2]
[420646027,1776417033298,-500.0,9.099e-05,2]
[420646028,1776417033307,-500.0,9.099e-05,2]
[420646029,1776417033316,-500.0,9.099e-05,2]
[420646030,1776417033325,-500.0,9.099e-05,2]
[420646031,1776417033334,-500.0,9.099e-05,2]
[420646032,1776417033344,-500.0,9.099e-05,2]
[420646033,1776417033353,-500.0,9.099e-05,2]
[420646034,1776417033362,-500.0,9.099e-05,2]
[420646035,1776417033371,-500.0,9.099e-05,2]
[420646036,1776417033380,-500.0,9.099e-05,2]
[420646037,1776417033389,-500.0,9.099e-05,2]
[420646038,1776417033398,-500.0,9.099e-05,2]
[420646039,1776417033407,-500.0,9.099e-05,2]
[420646040,1776417033416,-500.0,9.099e-05,2]
[420646041,1776417033425,-500.0,9.099e-05,2]
[420646042,1776417033434,-500.0,9.099e-05,2]
[420646043,1776417033444,-500.0,9.099e-05,2]
[420646044,1776417033454,-172.39566048,9.099e-05,2]
[420646045,1776417033463,-500.0,9.099e-05,2]
[420646046,1776417033473,-500.0,9.099e-05,2]
[420646047,1776417033483,-500.0,9.099e-05,2]
[420646048,1776417033492,-500.0,9.099e-05,2]
[420646049,1776417033501,-500.0,9.099e-05,2]
[420646050,1776417033510,-500.0,9.099e-05,2]
[420646051,1776417033519,-500.0,9.099e-05,2]
[420646052,1776417033529,-500.0,9.099e-05,2]
[420646053,1776417033538,-500.0,9.099e-05,2]
[420646054,1776417033547,-367.23956605,9.099e-05,2]
[420646055,1776417033556,-500.0,9.099e-05,2]
[420646056,1776417033565,-500.0,9.099e-05,2]
[420646057,1776417033575,-500.0,9.099e-05,2]
[420646058,1776417033584,-500.0,9.099e-05,2]
[420646059,1776417033594,-500.0,9.099e-05,2]
[420646060,1776417033603,-500.0,9.099e-05,2]
[420646061,1776417033612,-500.0,9.099e-05,2]
[420646062,1776417033622,-500.0,9.099e-05,2]
[420646063,1776417033632,-500.0,9.099e-05,2]
[420646064,1776417033641,-500.0,9.099e-05,2]
[420646065,1776417033650,-500.0,9.099e-05,2]
[420646066,1776417033659,-500.0,9.099e-05,2]
[420646067,1776417033668,-500.0,9.099e-05,2]
[420646068,1776417033677,-500.0,9.099e-05,2]
[420646069,1776417033686,-500.0,9.099e-05,2]
[420646070,1776417033695,-500.0,9.099e-05,2]
[420646071,1776417033704,-350.0,9.099e-05,2]
[420646072,1776417033715,-93162.58660519,9.1e-05,2]
[420646073,1776417033729,-12506.05914538,9.1e-05,2]
[420646074,1776417033740,-1430.66631438,9.1e-05,2]
[420646080,1776417039014,-918.39982421,9.1e-05,2]
[420646081,1776417039026,-700.0,9.1e-05,2]
[420646082,1776417039068,-3595.2502192,9.1e-05,2]
[420646083,1776417039230,-24105.90674029,9.1e-05,2]
[420646084,1776417039240,-29114.96829737,9.1e-05,2]
[420646085,1776417039252,-42357.35242812,9.1e-05,2]
[420646086,1776417039284,-406.11588317,9.1e-05,2]
[420646152,1776417040093,-2446.35509969,9.1e-05,2]
[420646194,1776417040675,-5692.48882377,9.1e-05,2]
[420646208,1776417043479,-56401.58831653,9.1e-05,2]
[420646209,1776417043491,-136418.86884865,9.1e-05,2]
[420646211,1776417043501,-1121.926964,9.1e-05,2]
[420646212,1776417043510,-1001.787014,9.1e-05,2]
[420646213,1776417043521,-1121.926964,9.1e-05,2]
[420646214,1776417043530,-1001.787014,9.1e-05,2]
[420646215,1776417043540,-1121.926964,9.1e-05,2]
[420646216,1776417043549,-1001.787014,9.1e-05,2]
[420646217,1776417043559,-1121.926964,9.1e-05,2]
[420646218,1776417043568,-1001.787014,9.1e-05,2]
[420646220,1776417043578,-9499.31530938,9.1e-05,2]
[420646222,1776417043587,-13441.6425386,9.117e-05,2]
[420646224,1776417043596,-230.276631,9.117e-05,2]
[420646225,1776417043606,-308.76,9.118e-05,2]
[420646226,1776417043615,-150.0,9.134e-05,2]
[420646227,1776417043624,-151.0,9.154e-05,2]
[420646228,1776417043633,-151.0,9.154e-05,2]
[420646229,1776417043643,-193.32968902,9.154e-05,2]
[420646230,1776417043652,-228.87834043,9.154e-05,2]
[420646231,1776417043661,-5000.0,9.154e-05,2]
[420646232,1776417043670,-5000.0,9.154e-05,2]
[420646233,1776417043680,-250.0,9.154e-05,2]
[420646234,1776417043693,-250.0,9.154e-05,2]
[420646235,1776417043702,-1680.0,9.176e-05,2]
[420646236,1776417043712,-255.0,9.185e-05,2]
[420646237,1776417043721,-1695.69619006,9.233e-05,2]
[420646238,1776417043730,-500.0,9.233e-05,2]
[420646239,1776417043740,-368.0,9.233e-05,3]
[420646240,1776417043749,-162.0,9.233e-05,3]
[420646241,1776417043757,-250.30860462,9.245e-05,2]
[420646242,1776417043766,-2000.0,9.247e-05,2]
[420646243,1776417043775,-150.0,9.264e-05,2]
[420646244,1776417043784,-6028.0,9.277e-05,2]
[420646245,1776417043793,-3778.0,9.277e-05,2]
[420646246,1776417043802,-200.89,9.278e-05,2]
[420646247,1776417043811,-3927.49031827,9.299e-05,2]
[420646248,1776417043819,-166.66,9.304e-05,2]
[420646249,1776417043828,-5896.0,9.356e-05,2]
[420646250,1776417043838,-2473.0,9.365e-05,2]
[420646251,1776417043847,-500.0,9.373e-05,2]
[420646252,1776417043856,-166.82,9.405e-05,2]
[420646253,1776417043865,-150.0,9.475e-05,2]
[420646254,1776417043875,-151.0,9.475e-05,2]
[420646255,1776417043883,-150.0,9.475e-05,2]
[420646256,1776417043892,-204.027,9.475e-05,2]
[420646257,1776417043902,-150.294,9.475e-05,2]
[420646258,1776417043915,-150.0,9.475e-05,2]
[420646259,1776417043924,-623.624,9.475e-05,2]
[420646260,1776417043934,-1348.0,9.475e-05,2]
[420646261,1776417043943,-3528.0,9.475e-05,2]
[420646262,1776417043953,-1049.659,9.475e-05,2]
[420646263,1776417043962,-150.281,9.475e-05,2]
[420646264,1776417043971,-928.464,9.475e-05,2]
[420646265,1776417043981,-1219.532,9.475e-05,2]
[420646266,1776417043990,-4689.0,9.489e-05,2]
[420646267,1776417044000,-150.0,9.489e-05,2]
[420646268,1776417044009,-43971.07445376,9.489e-05,2]
[420646269,1776417044019,-150.0,9.5e-05,2]
[420646270,1776417044028,-52417.914149,9.515e-05,2]
[420646271,1776417044038,-151.0,9.515e-05,2]
[420646272,1776417044047,-151.0,9.515e-05,2]
[420646273,1776417044056,-1121.926964,9.515e-05,2]
[420646274,1776417044066,-1001.787014,9.515e-05,2]
[420646275,1776417044075,-1121.926964,9.515e-05,2]
[420646276,1776417044084,-1001.787014,9.515e-05,2]
[420646277,1776417044094,-1121.926964,9.515e-05,2]
[420646278,1776417044104,-1001.787014,9.515e-05,2]
[420646279,1776417044114,-1121.926964,9.515e-05,2]
[420646280,1776417044123,-1001.787014,9.515e-05,2]
[420646281,1776417044132,-4782.0,9.555e-05,2]
[420646282,1776417044142,-166.66,9.575e-05,2]
[420646283,1776417044151,-151.0,9.589e-05,2]
[420646284,1776417044160,-151.0,9.589e-05,2]
[420646285,1776417044169,-151.0,9.589e-05,2]
[420646286,1776417044179,-151.0,9.589e-05,2]
[420646287,1776417044188,-4000.0,9.59e-05,2]
[420646288,1776417044198,-187.78006525,9.616e-05,2]
[420646289,1776417044207,-501.26652409,9.621e-05,2]
[420646290,1776417044216,-504.23904526,9.621e-05,2]
[420646291,1776417044226,-980.97380067,9.621e-05,2]
[420646292,1776417044236,-151.0,9.631e-05,2]
[420646293,1776417044246,-3526.0,9.634e-05,2]
[420646294,1776417044257,-282.0,9.641e-05,2]
[420646295,1776417044267,-1328.27659266,9.643e-05,2]
[420646296,1776417044278,-500.0,9.647e-05,2]
[420646297,1776417044288,-173.83,9.672e-05,2]
[420646298,1776417044297,-1600.0,9.733e-05,2]
[420646299,1776417044307,-250.0,9.733e-05,2]
[420646300,1776417044319,-11696.0175787,9.754e-05,2]
[420646301,1776417044329,-2789.0,9.754e-05,2]
[420646302,1776417044338,-3500.0,9.84e-05,2]
[420646303,1776417044348,-160.0,9.843e-05,2]
[420646304,1776417044358,-7854.0,9.854e-05,2]
[420646305,1776417044367,-3100.0,9.9e-05,3]
[420646306,1776417044377,-368.0,9.905e-05,3]
[420646307,1776417044387,-474.19721144,9.921e-05,2]
[420646308,1776417044396,-7088.26589123,9.963e-05,2]
[420646309,1776417044410,-1333.73410877,9.963e-05,2]
[420646310,1776417044421,-165.3654,0.0001,2]
[420646311,1776417044431,-50500.0,0.0001,2]
[420646312,1776417044441,-1000.0,0.0001,2]
[420646313,1776417044451,-1000.0,0.0001,2]
[420646314,1776417044460,-1000.0,0.0001,2]
[420646315,1776417044470,-1000.0,0.0001,2]
[420646316,1776417044479,-1000.0,0.0001,2]
[420646317,1776417044488,-1000.0,0.0001,2]
[420646318,1776417044499,-1000.0,0.0001,2]
[420646319,1776417044508,-1000.0,0.0001,2]
[420646320,1776417044518,-1000.0,0.0001,2]
[420646321,1776417044527,-1000.0,0.0001,2]
[420646322,1776417044537,-1000.0,0.0001,2]
[420646323,1776417044547,-1000.0,0.0001,2]
[420646324,1776417044556,-1000.0,0.0001,2]
[420646325,1776417044566,-1000.0,0.0001,2]
[420646326,1776417044576,-1000.0,0.0001,2]
[420646327,1776417044585,-1000.0,0.0001,2]
[420646328,1776417044595,-1000.0,0.0001,2]
[420646329,1776417044605,-1000.0,0.0001,2]
[420646330,1776417044615,-1000.0,0.0001,2]
[420646331,1776417044624,-1000.0,0.0001,2]
[420646332,1776417044635,-1000.0,0.0001,2]
[420646333,1776417044645,-1000.0,0.0001,2]
[420646334,1776417044654,-1000.0,0.0001,2]
[420646335,1776417044664,-971.24996322,0.0001,2]
[420646341,1776417046078,-383.0,9.102e-05,7]
[420646342,1776417046089,-28.75003678,0.0001,2]
[420646343,1776417046098,-88.72017197,0.0001,2]
[420646344,1776417046110,-911.27982803,0.0001,2]
[420646345,1776417046120,-329.343897,0.0001,2]
[420646346,1776417046130,-300.0,0.0001,2]
[420646347,1776417046139,-310.60556621,0.0001,2]
[420646348,1776417046354,-2618.32687885,9.299e-05,2]
[420646349,1776417046364,-87977.38682672,0.0001,2]
[420646350,1776417046374,-151.0,0.0001,2]
[420646351,1776417046385,-151.0,0.0001,2]
[420646352,1776417046396,-151.0,0.0001,2]
[420646353,1776417046411,-151.0,0.0001,2]
[420646354,1776417046421,-172.473845,0.0001,2]
[420646355,1776417046431,-151.0,0.0001,2]
[420646356,1776417046442,-192.074026,0.0001,2]
[420646357,1776417046452,-151.0,0.0001,2]
[420646358,1776417046462,-217.00032421,0.0001,2]
[420646359,1776417046473,-1121.926964,0.0001,2]
[420646360,1776417046483,-500.0,0.0001,2]
[420646361,1776417046494,-500.0,0.0001,2]
[420646362,1776417046504,-36.5181874,0.0001,2]
[420646363,1776417046555,-702.74237413,0.0001,2]
[420646366,1776417046577,-262.52645247,0.0001,2]
[420646368,1776417046587,-77.66904747,0.0001,2]
[420646370,1776417046600,-73.33095253,0.0001,2]
[420646372,1776417046610,-420.41557917,0.0001,2]
[420646377,1776417046644,-79.58442083,0.0001,2]
[420646379,1776417046654,-200.0,0.0001,2]
[420646381,1776417046663,-151.0,0.0001,2]
[420646383,1776417046673,-500.0,0.0001,2]
[420646385,1776417046683,-151.0,0.0001,2]
[420646387,1776417046693,-1121.926964,0.0001,2]
[420646389,1776417046704,-500.0,0.0001,2]
[420646391,1776417046714,-151.0,0.0001,2]
[420646393,1776417046724,-500.0,0.0001,2]
[420646395,1776417046734,-1001.787014,0.0001,2]
[420646397,1776417046745,-151.0,0.0001,2]
[420646400,1776417046755,-500.0,0.0001,2]
[420646402,1776417046765,-151.0,0.0001,2]
[420646404,1776417046775,-189.78674529,0.0001,2]
[420646406,1776417046784,-1121.926964,0.0001,2]
[420646408,1776417046795,-151.0,0.0001,2]
[420646410,1776417046805,-1001.787014,0.0001,2]
[420646412,1776417046815,-151.0,0.0001,2]
[420646414,1776417046825,-151.0,0.0001,2]
[420646416,1776417046835,-151.0,0.0001,2]
[420646418,1776417046846,-1121.926964,0.0001,2]
[420646420,1776417046856,-151.0,0.0001,2]
[420646422,1776417046866,-1001.787014,0.0001,2]
[420646424,1776417046876,-151.0,0.0001,2]
[420646426,1776417046887,-151.0,0.0001,2]
[420646428,1776417046897,-151.0,0.0001,2]
[420646430,1776417046907,-132.2686437,0.0001,2]
[420646433,1776417046921,-18.7313563,0.0001,2]
[420646435,1776417046931,-500.0,0.0001,2]
[420646437,1776417046942,-500.0,0.0001,2]
[420646439,1776417046953,-500.0,0.0001,2]
[420646441,1776417046966,-500.0,0.0001,2]
[420646443,1776417046977,-500.0,0.0001,2]
[420646445,1776417046987,-381.2686437,0.0001,2]
[420646448,1776417047002,-118.7313563,0.0001,2]
[420646450,1776417047011,-359.04533938,0.0001,2]
[420646524,1776417066992,10000.01,8.262e-05,2]
[420646525,1776417067017,10000.01,8.262e-05,2]
[420646526,1776417067042,10000.01,8.262e-05,2]
[420646527,1776417067067,10000.01,8.262e-05,2]
[420646528,1776417067093,10000.01,8.262e-05,2]
[420646529,1776417067121,10000.01,8.262e-05,2]
[420646530,1776417067149,10000.01,8.262e-05,2]
[420646531,1776417067174,10000.01,8.262e-05,2]
[420646532,1776417067199,10000.01,8.262e-05,2]
[420646533,1776417067224,10000.01,8.262e-05,2]
[420646534,1776417067249,5000.01,8.262e-05,2]
[420646535,1776417067273,5000.01,8.262e-05,2]
[420646536,1776417067302,5000.01,8.262e-05,2]
[420646537,1776417067325,5000.01,8.262e-05,2]
[420646538,1776417067351,5000.01,8.262e-05,2]
[420646539,1776417067376,5000.01,8.262e-05,2]
[420646540,1776417067401,5000.01,8.262e-05,2]
[420646541,1776417067425,5000.01,8.262e-05,2]
[420646542,1776417067449,5000.01,8.262e-05,2]
[420646543,1776417067474,5000.01,8.262e-05,2]
[420646544,1776417067503,40531.9555,8.262e-05,2]
[420646545,1776417091428,1130.4377,8.263e-05,2]
[420646546,1776417096857,5000.01,8.263e-05,2]
[420646547,1776417128167,3169.726581,7.945e-05,2]
[420646548,1776417128439,475.0,8.263e-05,3]
[420646549,1776417135342,162.0,8.263e-05,3]
[420646550,1776417189149,62.835719,8.263e-05,3]
[420646551,1776417189172,409.164281,8.263e-05,3]
[420646552,1776417195530,163.0,8.263e-05,3]
[420646553,1776417224239,10000.01,8.262e-05,2]
[420646554,1776417224266,10000.01,8.262e-05,2]
[420646555,1776417224291,10000.01,8.262e-05,2]
[420646556,1776417224316,10000.01,8.262e-05,2]
[420646557,1776417224350,1254.0156,8.262e-05,2]
[420646558,1776417247819,627.0,8.262e-05,3]
[420646559,1776417254351,162.0,8.262e-05,3]
[420646562,1776417311398,159.0,8.262e-05,3]
[420646563,1776417311450,804.0,8.262e-05,3]
[420646564,1776417343069,400.0,8.284e-05,2]
[420646565,1776417343188,235.46,8.284e-05,2]
[420646566,1776417367493,162.0,8.262e-05,3]
[420646567,1776417427582,781.0,8.262e-05,3]
[420646568,1776417432915,163.0,8.262e-05,3]
[420646621,1776417485604,759.0,8.262e-05,3]
[420646622,1776417489201,150.0,8.22e-05,2]
[420646623,1776417498197,-400.00000899,8.462e-05,2]
[420646624,1776417498235,-13.15998202,8.462e-05,2]
[420646625,1776417498256,-386.84001798,8.462e-05,2]
[420646626,1776417498266,-13.15999101,8.509e-05,2]
[420646627,1776417498285,-136.84000899,8.509e-05,2]
[420646628,1776417498295,-263.15999101,8.636e-05,2]
[420646629,1776417545658,737.0,8.262e-05,3]
[420646630,1776417605438,700.0,8.262e-05,3]
[420646631,1776417611282,159.0,8.262e-05,3]
[420646632,1776417667763,680.0,8.262e-05,3]
[420646633,1776417727246,646.0,8.262e-05,3]
[420646634,1776417846996,626.0,8.262e-05,3]
[420646635,1776417850663,476.3556,0.000165,30]
[420646639,1776417967060,607.0,8.262e-05,3]
[420646641,1776417979169,249.690294,8.178e-05,2]
[420646643,1776418027306,577.0,8.262e-05,3]
[420646650,1776418085781,548.0,8.262e-05,3]
[420646651,1776418146903,531.0,8.262e-05,3]
[420646653,1776418206437,159.0,8.262e-05,3]
[420646655,1776418211283,515.0,8.262e-05,3]
[420646675,1776418232132,-150.0,8.316e-05,2]
[420646677,1776418232142,-166.7115518,8.333e-05,2]
[420646679,1776418232151,-1189.31,8.35e-05,2]
[420646681,1776418232160,-2000.0,8.37e-05,2]
[420646683,1776418232170,-1500.0,8.42e-05,2]
[420646685,1776418232180,-300.0,8.487e-05,2]
[420646687,1776418232190,-2281.00936148,8.488e-05,2]
[420646691,1776418232225,-6234.37063852,8.488e-05,2]
[420646693,1776418232235,-150.0,8.52e-05,2]
[420646695,1776418232244,-388.0,8.548e-05,7]
[420646698,1776418232255,-12569.63000899,8.636e-05,2]
[420646700,1776418232264,-299.99,8.636e-05,2]
[420646702,1776418232274,-578.20924308,8.659e-05,2]
[420646704,1776418232283,-150.0,8.685e-05,2]
[420646706,1776418232296,-1280.88388878,8.686e-05,2]
[420646708,1776418232306,-646.65982734,8.686e-05,2]
[420646710,1776418232315,-2419.95251276,8.686e-05,2]
[420646712,1776418232325,-174.61919141,8.686e-05,2]
[420646714,1776418232335,-24999.99,8.691e-05,2]
[420646716,1776418232344,-388.0,8.693e-05,7]
[420646718,1776418232354,-166.68,8.7e-05,2]
[420646720,1776418232365,-150.0,8.735e-05,2]
[420646722,1776418232375,-260.592825,8.772e-05,2]
[420646724,1776418232385,-150.0,8.899e-05,2]
[420646725,1776418232394,-150.0,8.975e-05,2]
[420646726,1776418232404,-150.0,8.975e-05,2]
[420646728,1776418232413,-150.0,8.975e-05,2]
[420646730,1776418232422,-150.0,8.975e-05,2]
[420646732,1776418232431,-150.0,8.975e-05,2]
[420646734,1776418232441,-150.0,8.975e-05,2]
[420646736,1776418232450,-150.0,8.975e-05,2]
[420646738,1776418232459,-150.0,8.975e-05,2]
[420646740,1776418232469,-150.0,8.975e-05,2]
[420646742,1776418232478,-150.0,8.975e-05,2]
[420646743,1776418232487,-150.0,8.975e-05,2]
[420646744,1776418232496,-201.29039859,8.975e-05,2]
[420646745,1776418232506,-150.0,8.975e-05,2]
[420646746,1776418232516,-150.0,8.975e-05,2]
[420646747,1776418232525,-500.0,8.975e-05,2]
[420646748,1776418232535,-515.0,8.985e-05,3]
[420646749,1776418232544,-1028.361,9.036e-05,2]
[420646750,1776418232554,-1692.71,9.071e-05,2]
[420646752,1776418232565,-10118.88,9.071e-05,2]
[420646754,1776418232575,-788.50553814,9.1e-05,2]
[420646756,1776418232585,-500.0,9.105e-05,3]
[420646758,1776418232594,-250.0,9.147e-05,2]
[420646760,1776418232604,-250.0,9.147e-05,2]
[420646762,1776418232614,-150.0,9.19e-05,2]
[420646765,1776418232625,-1600.0,9.207e-05,2]
[420646768,1776418232635,-1293.0,9.234e-05,5]
[420646771,1776418232645,-500.0,9.234e-05,2]
[420646774,1776418232655,-1328.27659266,9.234e-05,2]
[420646777,1776418232665,-181.08010149,9.234e-05,2]
[420646780,1776418232676,-150.0,9.308e-05,2]
[420646783,1776418232686,-160.71,9.361e-05,2]
[420646786,1776418232695,-2000.0,9.417e-05,2]
[420646788,1776418232705,-665.12068541,9.454e-05,2]
[420646790,1776418232715,-382.0,9.455e-05,2]
[420646793,1776418232724,-1265.342,9.455e-05,2]
[420646795,1776418232735,-926.0,9.455e-05,2]
[420646797,1776418232744,-1219.0,9.455e-05,2]
[420646799,1776418232753,-3361.281,9.455e-05,2]
[420646801,1776418232762,-1348.0,9.455e-05,2]
[420646803,1776418232772,-150.0,9.474e-05,2]
[420646805,1776418232781,-150.0,9.474e-05,2]
[420646807,1776418232791,-150.0,9.49e-05,2]